bitfinex/quotes_BTCUSD_20241111
["timestamp","ask_amount","ask_price","bid_price","bid_amount"]
[1731337175673,0.16255809,82554.0,82553.0,0.154134]
[1731337175860,0.16255809,82554.0,82553.0,0.28007621]
[1731337176002,0.16255809,82554.0,82553.0,0.27507621]
[1731337176412,0.0814,82578.0,82562.0,0.144121]
[1731337176621,0.0814,82578.0,82562.0,0.27006321]
[1731337176881,0.0814,82578.0,82565.0,0.144116]
[1731337177109,0.0814,82578.0,82565.0,0.27005821]
[1731337178074,0.0814,82578.0,82565.0,0.27709199]
[1731337179486,0.0814,82578.0,82565.0,0.15697599]
[1731337179681,0.121185,82573.0,82565.0,0.003]
[1731337180009,8e-05,82573.0,82565.0,0.002]
[1731337180352,8e-05,82573.0,82565.0,0.003]
[1731337180549,8e-05,82573.0,82565.0,0.001]
[1731337181158,0.121111,82569.0,82565.0,0.002]
[1731337181349,0.121109,82570.0,82565.0,0.002]
[1731337181567,0.121114,82567.0,82565.0,0.002]
[1731337181773,0.203302,82566.0,82565.0,0.002]
[1731337182155,0.203302,82566.0,82565.0,0.001]
[1731337182432,0.203302,82566.0,82565.0,0.002]
[1731337182591,0.127287,82566.0,82547.0,0.00619898]
[1731337182817,0.01,82558.0,82543.0,0.18187109]
[1731337183027,0.242283,82549.0,82543.0,0.18187109]
[1731337183222,0.18687109,82556.0,82532.0,0.18187109]
[1731337183455,0.121143,82547.0,82532.0,0.18187109]
[1731337183789,0.121141,82548.0,82547.0,0.001]
[1731337183936,0.242315,82537.0,82516.0,0.18187109]
[1731337184294,0.0815,82546.0,82536.0,0.18187109]
[1731337184455,0.18187109,82542.0,82525.0,0.121174]
[1731337184660,0.242292,82545.0,82527.0,0.121172]
[1731337184867,0.18187109,82543.0,82528.0,0.12117]
[1731337185483,0.0815,82546.0,82532.0,0.122164]
[1731337185682,0.0815,82546.0,82537.0,0.121156]
[1731337185683,0.18187109,82543.0,82537.0,0.121156]
[1731337186091,0.0815,82546.0,82539.0,0.121154]
[1731337186210,0.0815,82546.0,82537.0,0.121157]
[1731337186379,0.0815,82546.0,82538.0,0.121155]
[1731337186593,0.0815,82546.0,82537.0,0.121157]
[1731337186799,0.0815,82546.0,82539.0,0.121154]
[1731337187003,0.0815,82546.0,82535.0,0.12594221]
[1731337187187,0.0815,82546.0,82539.0,0.001]
[1731337187404,0.18187109,82551.0,82550.0,0.144137]
[1731337187603,0.25857109,82561.0,82554.0,0.121132]
[1731337187879,0.25857109,82561.0,82556.0,0.121128]
[1731337188075,0.25857109,82561.0,82554.0,0.12594221]
[1731337188227,0.0767,82561.0,82554.0,0.12594221]
[1731337188435,0.0767,82561.0,82555.0,0.121131]
[1731337188652,0.25857109,82561.0,82544.0,0.121147]
[1731337188849,0.0767,82561.0,82546.0,0.18187109]
[1731337189057,0.18187109,82560.0,82544.0,0.14894221]
[1731337189279,0.0777,82561.0,82546.0,0.30301509]
[1731337189459,0.25957109,82561.0,82546.0,0.18187109]
[1731337189629,0.25857109,82561.0,82546.0,0.18187109]
[1731337189835,0.25857109,82561.0,82544.0,0.14894221]
[1731337189836,0.0804,82550.0,82544.0,0.001]
[1731337190107,0.0804,82550.0,82545.0,0.18187109]
[1731337190301,0.0804,82550.0,82544.0,0.001]
[1731337190453,0.121141,82549.0,82544.0,0.001]
[1731337190657,0.0804,82550.0,82544.0,0.001]
[1731337190878,0.121145,82546.0,82544.0,0.001]
[1731337191077,0.121146,82545.0,82544.0,0.001]
[1731337191279,0.0804,82550.0,82544.0,0.001]
[1731337191549,0.0804,82550.0,82546.0,0.001]
[1731337191734,0.18187109,82549.0,82536.0,0.121159]
[1731337191932,0.121142,82548.0,82544.0,0.001]
[1731337192070,0.001,82546.0,82544.0,0.001]
[1731337192269,0.001,82546.0,82529.0,0.0236736]
[1731337192270,0.0804,82550.0,82531.0,0.121165]
[1731337192510,0.0804,82550.0,82529.0,0.0236736]
[1731337192511,0.12114,82549.0,82536.0,0.18187109]
[1731337192724,0.0814,82550.0,82533.0,0.121163]
[1731337192920,0.0814,82550.0,82529.0,0.0236736]
[1731337192921,0.0814,82550.0,82536.0,0.18187109]
[1731337193141,0.18187109,82549.0,82537.0,0.12836529]
[1731337193289,0.18187109,82549.0,82532.0,0.121165]
[1731337193491,0.18187109,82549.0,82533.0,0.121163]
[1731337193690,0.18187109,82549.0,82535.0,0.12116]
[1731337194143,0.18187109,82549.0,82533.0,0.242325]
[1731337194359,0.242286,82547.0,82532.0,0.12594221]
[1731337194671,0.242286,82547.0,82524.0,0.121176]
[1731337194672,0.242291,82546.0,82528.0,0.30304109]
[1731337194874,0.12115,82543.0,82528.0,0.18187109]
[1731337195112,0.121145,82546.0,82537.0,0.001]
[1731337195322,0.121153,82540.0,82537.0,0.001]
[1731337195492,0.24889065,82542.0,82538.0,0.01177467]
[1731337195645,0.24889065,82542.0,82517.0,0.00842686]
[1731337195646,0.30302409,82540.0,82539.0,0.01177467]
[1731337195891,0.121153,82540.0,82539.0,0.01177467]
[1731337196057,0.24889065,82542.0,82530.0,0.01177467]
[1731337196058,0.12115,82542.0,82530.0,0.01177467]
[1731337196285,0.121147,82545.0,82531.0,0.13771688]
[1731337196460,0.18187109,82547.0,82520.0,0.09325322]
[1731337196664,0.18187109,82547.0,82517.0,0.00600334]
[1731337196665,0.121154,82539.0,82538.0,0.001]
[1731337196869,0.0854,82550.0,82538.0,0.001]
[1731337197067,0.121154,82539.0,82538.0,0.001]
[1731337197274,0.121151,82541.0,82538.0,0.001]
[1731337197455,0.242283,82548.0,82538.0,0.001]
[1731337197669,0.12115,82543.0,82538.0,0.001]
[1731337197899,0.12594221,82549.0,82529.0,0.02362432]
[1731337198107,0.121164,82533.0,82531.0,0.001]
[1731337198352,0.121164,82533.0,82517.0,0.121185]
[1731337198353,0.0485,82543.0,82517.0,0.023]
[1731337198560,0.121152,82541.0,82527.0,0.02455622]
[1731337198762,0.18187109,82541.0,82527.0,0.15049843]
[1731337199307,0.121154,82540.0,82522.0,0.023]
[1731337199533,0.01804834,82540.0,82523.0,0.12594221]
[1731337199743,0.18187109,82544.0,82538.0,0.001]
[1731337200088,0.121152,82541.0,82538.0,0.001]
[1731337200315,0.0804,82550.0,82538.0,0.001]
[1731337200661,0.201539,82550.0,82538.0,0.001]
[1731337200844,0.0804,82550.0,82538.0,0.001]
[1731337201045,0.0804,82550.0,82539.0,0.12594221]
[1731337201260,0.24889065,82546.0,82522.0,0.03012704]
[1731337201481,0.12594221,82545.0,82527.0,0.001]
[1731337201729,0.24889065,82535.0,82528.0,0.18187109]
[1731337201933,0.24889065,82535.0,82517.0,0.18187109]
[1731337202311,0.005,82542.0,82517.0,0.18187109]
[1731337202516,0.0781,82533.0,82518.0,0.18187109]
[1731337202728,0.0781,82533.0,82512.0,0.001688]
[1731337202729,0.18187109,82530.0,82527.0,0.001]
[1731337202905,0.29222223,82528.0,82527.0,0.001]
[1731337203108,0.29222223,82528.0,82512.0,0.001688]
[1731337203109,0.121193,82513.0,82512.0,0.001688]
[1731337203326,0.005,82511.0,82469.0,0.22837109]
[1731337203522,0.24974221,82513.0,82496.0,0.18187109]
[1731337203523,0.16605223,82500.0,82496.0,0.18187109]
[1731337203717,0.1238,82513.0,82496.0,0.18187109]
[1731337203943,0.16605223,82500.0,82493.0,0.02477616]
[1731337204177,0.28726423,82500.0,82493.0,0.02477616]
[1731337204338,0.16605223,82507.0,82485.0,0.00612708]
[1731337204529,0.005,82511.0,82485.0,0.00612708]
[1731337204731,0.005,82511.0,82476.0,0.002]
[1731337204732,0.3805183,82500.0,82469.0,0.18187109]
[1731337204960,0.005,82486.0,82469.0,0.18187109]
[1731337205167,0.0781,82485.0,82478.0,0.18187109]
[1731337205498,0.0781,82485.0,82470.0,0.12594221]
[1731337205499,0.0781,82495.0,82482.0,0.121237]
[1731337205621,0.0781,82495.0,82477.0,0.00306354]
[1731337205622,0.18187109,82489.0,82477.0,0.00306354]
[1731337205831,0.18187109,82489.0,82469.0,0.00604711]
[1731337205981,0.2965063,82484.0,82471.0,0.00242477]
[1731337206182,0.005,82491.0,82464.0,0.001372]
[1731337206381,0.0831,82495.0,82479.0,0.121242]
[1731337206382,0.18187109,82492.0,82479.0,0.121242]
[1731337206575,0.18187109,82492.0,82478.0,0.001]
[1731337206576,0.18187109,82492.0,82484.0,0.121235]
[1731337206822,0.18187109,82492.0,82491.0,0.121225]
[1731337207059,0.0781,82495.0,82494.0,0.12122]
[1731337207373,0.0781,82495.0,82484.0,0.121234]
[1731337207476,0.2493063,82489.0,82480.0,0.02414175]
[1731337207684,0.12594221,82488.0,82478.0,0.001]
[1731337207884,0.12594221,82488.0,82464.0,0.001372]
[1731337207885,0.2493063,82481.0,82471.0,0.001]
[1731337208228,0.2493063,82473.0,82471.0,0.001]
[1731337208423,0.121263,82465.0,82464.0,0.001372]
[1731337208622,0.2493063,82465.0,82464.0,0.001372]
[1731337209703,0.121257,82470.0,82464.0,0.002372]
[1731337210041,0.12594221,82469.0,82464.0,0.002372]
[1731337210272,0.247512,82470.0,82464.0,0.002372]
[1731337210273,0.121256,82470.0,82464.0,0.002372]
[1731337210549,0.0767,82472.0,82467.0,0.121259]
[1731337210706,0.1,82485.0,82471.0,0.121254]
[1731337210707,0.18187109,82484.0,82471.0,0.121254]
[1731337210929,0.18187109,82475.0,82472.0,0.01170261]
[1731337211120,0.18187109,82475.0,82464.0,0.001372]
[1731337211121,0.12626,82467.0,82466.0,0.01170261]
[1731337211303,0.13094221,82474.0,82464.0,0.001372]
[1731337211304,0.005,82474.0,82464.0,0.001372]
[1731337211485,0.005,82474.0,82465.0,0.01168689]
[1731337211659,0.005,82474.0,82467.0,0.001]
[1731337211863,0.005,82474.0,82471.0,0.001]
[1731337212062,0.005,82477.0,82471.0,0.001]
[1731337212285,0.08467749,82485.0,82472.0,0.121253]
[1731337212286,0.0787,82485.0,82472.0,0.121253]
[1731337212518,0.0787,82485.0,82464.0,0.001372]
[1731337212519,0.0787,82485.0,82478.0,0.121243]
[1731337212696,0.0787,82485.0,82484.0,0.121235]
[1731337212899,0.005,82495.0,82484.0,0.121235]
[1731337212900,0.3219588,82494.0,82484.0,0.121235]
[1731337213124,0.18187109,82485.0,82471.0,0.121254]
[1731337213599,0.18187109,82485.0,82466.0,0.121262]
[1731337213600,0.18187109,82483.0,82466.0,0.121262]
[1731337213613,0.005,82488.0,82473.0,0.121251]
[1731337213822,0.18187109,82487.0,82477.0,0.121245]
[1731337214051,0.18187109,82487.0,82478.0,0.13292402]
[1731337214272,0.50382989,82494.0,82479.0,0.01168102]
[1731337214481,0.18187109,82483.0,82476.0,0.121247]
[1731337214700,0.001,82485.0,82477.0,0.01168102]
[1731337214943,0.6297721,82494.0,82482.0,0.121238]
[1731337215158,0.6297721,82494.0,82483.0,0.01168102]
[1731337215370,0.6297721,82494.0,82482.0,0.01168102]
[1731337216052,0.3219588,82494.0,82493.0,0.121222]
[1731337216265,0.3219588,82494.0,82493.0,0.01168102]
[1731337216515,0.3219588,82494.0,82491.0,0.121224]
[1731337216752,0.3219588,82494.0,82492.0,0.01168102]
[1731337216975,0.3219588,82494.0,82493.0,0.121222]
[1731337217158,0.3219588,82494.0,82493.0,0.13290302]
[1731337217415,0.3219588,82494.0,82493.0,0.25884523]
[1731337217634,0.18187109,82504.0,82503.0,0.121207]
[1731337217897,0.082044,82528.0,82513.0,0.121193]
[1731337218133,0.3025,82523.0,82522.0,0.121179]
[1731337218347,0.000844,82528.0,82527.0,0.121172]
[1731337218695,0.000844,82528.0,82527.0,0.13285302]
[1731337219089,0.000844,82528.0,82527.0,0.28179523]
[1731337219372,0.000844,82528.0,82527.0,0.30047659]
[1731337219593,0.000844,82528.0,82527.0,0.38179523]
[1731337220021,0.000844,82528.0,82527.0,0.38279523]
[1731337220225,0.000844,82528.0,82527.0,0.13385302]
[1731337220474,0.000844,82528.0,82527.0,0.01268102]
[1731337220741,0.000844,82528.0,82527.0,0.001]
[1731337220961,0.0135453,82528.0,82527.0,0.001]
[1731337221189,0.20818621,82528.0,82527.0,0.001]
[1731337221392,0.20818621,82528.0,82503.0,0.02445901]
[1731337221393,0.077244,82528.0,82522.0,0.121178]
[1731337221597,0.077244,82528.0,82527.0,0.001]
[1731337221775,0.077244,82528.0,82527.0,0.002]
[1731337222013,0.077244,82528.0,82525.0,0.121174]
[1731337222230,0.077244,82528.0,82523.0,0.01168102]
[1731337222231,0.000844,82528.0,82527.0,0.001]
[1731337222433,0.000844,82528.0,82527.0,0.123172]
[1731337222634,0.000844,82528.0,82527.0,0.27111421]
[1731337222832,0.000844,82528.0,82527.0,0.27011421]
[1731337222961,0.000844,82528.0,82527.0,0.28379393]
[1731337223371,0.000844,82528.0,82527.0,0.13485172]
[1731337223591,0.000844,82528.0,82527.0,0.01367972]
[1731337224145,0.000844,82528.0,82527.0,0.13385172]
[1731337224261,0.000844,82528.0,82527.0,0.01167972]
[1731337224458,0.000844,82528.0,82527.0,0.002]
[1731337224863,0.000844,82528.0,82527.0,0.122172]
[1731337225199,0.13278621,82528.0,82527.0,0.01167972]
[1731337225340,0.005,82523.0,82504.0,0.01167972]
[1731337225534,0.121198,82510.0,82504.0,0.01167972]
[1731337225731,0.121193,82513.0,82503.0,0.01167972]
[1731337225971,0.01,82514.0,82503.0,0.121206]
[1731337225972,0.12594221,82512.0,82503.0,0.121206]
[1731337226184,0.12594221,82512.0,82483.0,0.21160545]
[1731337226185,0.121196,82511.0,82504.0,0.01167972]
[1731337226395,0.121198,82510.0,82500.0,0.01167972]
[1731337226625,0.242378,82516.0,82500.0,0.01167972]
[1731337226626,0.01,82524.0,82502.0,0.18187109]
[1731337226774,0.18187109,82515.0,82503.0,0.01167972]
[1731337226986,0.18187109,82515.0,82485.0,0.01167972]
[1731337226987,0.18187109,82505.0,82485.0,0.01167972]
[1731337227187,0.005,82509.0,82486.0,0.19355081]
[1731337227188,0.005,82501.0,82486.0,0.19355081]
[1731337227403,0.121221,82494.0,82482.0,0.121238]
[1731337227625,0.04895902,82494.0,82469.0,0.121256]
[1731337227830,0.12594221,82500.0,82485.0,0.121233]
[1731337228032,0.0783,82503.0,82474.0,0.20564695]
[1731337228232,0.18187109,82496.0,82485.0,0.2493063]
[1731337228448,0.18187109,82496.0,82491.0,0.121223]
[1731337228708,0.18187109,82496.0,82483.0,0.121236]
[1731337228931,0.18187109,82496.0,82482.0,0.001]
[1731337228932,0.04242921,82496.0,82482.0,0.001]
[1731337229012,0.005,82501.0,82487.0,0.12123]
[1731337229209,0.18187109,82496.0,82484.0,0.121235]
[1731337229440,0.12594221,82500.0,82488.0,0.121228]
[1731337229713,0.18187109,82505.0,82483.0,0.121237]
[1731337229948,0.18187109,82505.0,82482.0,0.023]
[1731337229949,0.005,82504.0,82493.0,0.121221]
[1731337230101,0.18187109,82504.0,82484.0,0.12594221]
[1731337230519,0.18187109,82504.0,82499.0,0.121212]
[1731337230731,0.18187109,82504.0,82503.0,0.121207]
[1731337230932,0.005,82514.0,82506.0,0.121203]
[1731337231129,0.005,82514.0,82505.0,0.121203]
[1731337231403,0.01,82519.0,82505.0,0.121203]
[1731337231597,0.18187109,82518.0,82509.0,0.121197]
[1731337231828,0.12594221,82523.0,82515.0,0.121189]
[1731337232192,0.12594221,82523.0,82493.0,0.2493063]
[1731337232193,0.31770072,82524.0,82498.0,0.023]
[1731337232336,0.31770072,82524.0,82517.0,0.121186]
[1731337232500,0.18187109,82518.0,82517.0,0.121187]
[1731337232622,0.18687109,82527.0,82511.0,0.121194]
[1731337232824,0.082044,82528.0,82495.0,0.18187109]
[1731337233065,0.000844,82528.0,82508.0,0.023]
[1731337233238,0.000844,82528.0,82516.0,0.121188]
[1731337233239,0.18187109,82517.0,82516.0,0.121188]
[1731337233545,0.000844,82528.0,82527.0,0.121172]
[1731337234184,0.000844,82528.0,82514.0,0.121191]
[1731337234358,0.000844,82528.0,82524.0,0.121175]
[1731337234562,0.18187109,82527.0,82523.0,0.121177]
[1731337234772,0.000844,82528.0,82521.0,0.121179]
[1731337234956,0.000844,82528.0,82527.0,0.002]
[1731337235267,0.000844,82528.0,82527.0,0.001]
[1731337235485,0.000844,82528.0,82519.0,0.121183]
[1731337235684,0.001844,82528.0,82523.0,0.121177]
[1731337235935,0.001844,82528.0,82525.0,0.121174]
[1731337236141,0.001844,82528.0,82527.0,0.121172]
[1731337236338,0.001804,82528.0,82527.0,0.121172]
[1731337236479,0.001804,82528.0,82527.0,0.13286908]
[1731337236857,0.000804,82528.0,82527.0,0.13286908]
[1731337236997,0.000804,82528.0,82527.0,0.28181129]
[1731337237201,0.000804,82528.0,82527.0,0.28281129]
[1731337237413,0.001804,82528.0,82527.0,0.28271129]
[1731337237609,0.001804,82528.0,82527.0,0.28171129]
[1731337237610,0.000804,82528.0,82527.0,0.28171129]
[1731337238617,0.000804,82528.0,82527.0,0.39517336]
[1731337238817,0.000804,82528.0,82527.0,0.38671129]
[1731337239171,0.000804,82528.0,82527.0,0.39381641]
[1731337239732,0.000804,82528.0,82527.0,0.44228741]
[1731337240142,0.000687,82566.0,82527.0,0.44228741]
[1731337240143,0.18187109,82541.0,82540.0,0.023]
[1731337240344,0.000687,82566.0,82550.0,0.144138]
[1731337240560,0.000687,82566.0,82550.0,0.28177729]
[1731337240762,0.000687,82566.0,82550.0,0.15583508]
[1731337240966,0.000687,82566.0,82560.0,0.121123]
[1731337241143,0.000687,82566.0,82561.0,0.13281908]
[1731337241342,0.17787109,82562.0,82561.0,0.01169708]
[1731337241531,0.000687,82566.0,82559.0,0.01169708]
[1731337241729,0.000687,82566.0,82557.0,0.121128]
[1731337241956,0.000687,82566.0,82565.0,0.121116]
[1731337242172,0.000687,82566.0,82565.0,0.13281308]
[1731337242342,0.000687,82566.0,82565.0,0.53106159]
[1731337242562,0.000687,82566.0,82565.0,0.15581308]
[1731337242747,0.000687,82566.0,82565.0,0.28175529]
[1731337243115,0.000687,82566.0,82565.0,0.323696]
[1731337243438,0.000687,82566.0,82565.0,0.28175529]
[1731337243642,0.000687,82566.0,82565.0,0.323696]
[1731337243882,0.001687,82566.0,82565.0,0.28175529]
[1731337244084,0.000687,82566.0,82565.0,0.28175529]
[1731337244495,0.000687,82566.0,82565.0,0.19975379]
[1731337244709,0.000687,82566.0,82565.0,0.13481308]
[1731337244923,0.000687,82566.0,82565.0,0.01369708]
[1731337245248,0.000687,82566.0,82565.0,0.002]
[1731337245249,0.121802,82566.0,82565.0,0.002]
[1731337245466,0.000687,82566.0,82565.0,0.002]
[1731337245668,0.000687,82566.0,82565.0,0.01369708]
[1731337245897,0.121802,82566.0,82565.0,0.01369708]
[1731337246079,0.000687,82566.0,82565.0,0.002]
[1731337246288,0.000687,82566.0,82565.0,0.0126877]
[1731337246502,0.000687,82566.0,82565.0,0.001]
[1731337246720,0.242918,82566.0,82558.0,0.0116877]
[1731337246945,0.121142,82548.0,82542.0,0.0116877]
[1731337247156,0.01,82564.0,82541.0,0.18187109]
[1731337247157,0.121141,82549.0,82543.0,0.0116877]
[1731337247362,0.0755,82563.0,82542.0,0.0116877]
[1731337247363,0.121148,82543.0,82542.0,0.0116877]
[1731337247575,0.242274,82551.0,82533.0,0.121162]
[1731337247777,0.121139,82550.0,82539.0,0.121153]
[1731337248101,0.18187109,82556.0,82532.0,0.18187109]
[1731337248275,0.18187109,82567.0,82543.0,0.121148]
[1731337248548,0.18187109,82558.0,82545.0,0.023]
[1731337248670,0.18187109,82558.0,82557.0,0.121128]
[1731337249082,0.18187109,82567.0,82554.0,0.023]
[1731337249285,0.18187109,82567.0,82557.0,0.121128]
[1731337249483,0.18187109,82567.0,82558.0,0.01169443]
[1731337249721,0.18187109,82567.0,82558.0,0.13281943]
[1731337249980,0.000687,82566.0,82559.0,0.01169443]
[1731337250262,0.17214221,82565.0,82548.0,0.01169443]
[1731337250438,0.121802,82566.0,82557.0,0.001]
[1731337250637,0.000687,82566.0,82558.0,0.001]
[1731337251189,0.001687,82566.0,82557.0,0.121127]
[1731337251366,0.000687,82566.0,82565.0,0.121116]
[1731337251574,0.000687,82566.0,82565.0,0.15581043]
[1731337251908,0.000687,82566.0,82565.0,0.32611553]
[1731337251909,0.004687,82566.0,82565.0,0.32611553]
[1731337252114,0.004687,82566.0,82565.0,0.32369335]
[1731337252966,0.007687,82566.0,82565.0,0.32369335]
[1731337253328,0.003687,82566.0,82565.0,0.32369335]
[1731337253582,0.000687,82566.0,82565.0,0.32369335]
[1731337253871,0.000687,82566.0,82565.0,0.32969335]
[1731337254514,0.000687,82566.0,82565.0,0.41899892]
[1731337254742,0.000687,82566.0,82565.0,0.43067445]
[1731337255558,0.000687,82566.0,82565.0,0.42567445]
[1731337255715,0.000687,82566.0,82565.0,0.42580805]
[1731337256144,0.000687,82566.0,82565.0,0.43080805]
[1731337256558,1e-06,82573.0,82572.0,0.249106]
[1731337256787,0.000686,82583.0,82580.0,0.249094]
[1731337257048,0.000686,82583.0,82580.0,0.67044251]
[1731337257156,0.000686,82583.0,82580.0,0.71217748]
[1731337257580,0.000686,82583.0,82580.0,0.71834987]
[1731337259294,0.000686,82583.0,82580.0,0.67224987]
[1731337259525,0.000686,82583.0,82580.0,0.66724987]
[1731337259732,0.000686,82583.0,82580.0,0.67324987]
[1731337259953,0.000686,82583.0,82580.0,0.67424987]
[1731337260169,0.000686,82583.0,82580.0,0.71834987]
[1731337260379,0.18255709,82596.0,82591.0,0.126078]
[1731337260583,0.18255709,82596.0,82591.0,0.30907921]
[1731337260787,0.18255709,82596.0,82591.0,0.18800121]
[1731337261222,0.18255709,82596.0,82591.0,0.12594221]
[1731337261438,0.000686,82596.0,82591.0,0.14894221]
[1731337261657,0.03072802,82597.0,82592.0,0.023]
[1731337261870,0.03072802,82597.0,82596.0,0.144071]
[1731337262086,0.03072802,82597.0,82596.0,0.27001321]
[1731337262298,0.03072802,82597.0,82596.0,0.30907221]
[1731337262766,0.04981722,82602.0,82596.0,0.30907221]
[1731337262986,0.04981722,82602.0,82601.0,0.144063]
[1731337263203,0.04981722,82602.0,82601.0,0.37742615]
[1731337263398,0.04981722,82602.0,82601.0,0.43406421]
[1731337263850,0.04981722,82602.0,82601.0,0.48286421]
[1731337264081,0.04981722,82602.0,82601.0,0.48086421]
[1731337264290,0.05427536,82604.0,82603.0,0.023]
[1731337264504,0.05427536,82604.0,82603.0,0.02]
[1731337264715,0.17533436,82604.0,82603.0,0.02]
[1731337264937,0.05427536,82604.0,82603.0,0.02]
[1731337265171,0.17533436,82604.0,82603.0,0.02]
[1731337265392,0.05427536,82604.0,82603.0,0.02]
[1731337265618,0.05427536,82604.0,82589.0,0.18187109]
[1731337265838,0.05427536,82604.0,82601.0,0.001]
[1731337266042,0.05427536,82604.0,82601.0,0.002]
[1731337266297,0.05427536,82604.0,82591.0,0.20487109]
[1731337266488,0.05427536,82604.0,82592.0,0.3078133]
[1731337266707,0.121065,82600.0,82592.0,0.16500121]
[1731337266928,0.000844,82602.0,82592.0,0.12594221]
[1731337267829,0.12107,82597.0,82592.0,0.16600121]
[1731337268055,0.121075,82593.0,82592.0,0.001]
[1731337268282,0.242142,82596.0,82592.0,0.001]
[1731337268501,0.121075,82593.0,82592.0,0.001]
[1731337268714,0.0757,82598.0,82592.0,0.001]
[1731337269113,0.0757,82598.0,82590.0,0.039059]
[1731337269335,0.000844,82602.0,82592.0,0.041059]
[1731337269481,0.121064,82601.0,82592.0,0.041059]
[1731337269679,0.242127,82601.0,82592.0,0.041059]
[1731337269925,0.18271509,82602.0,82592.0,0.040059]
[1731337270124,0.18271509,82602.0,82580.0,0.001688]
[1731337270125,0.005844,82602.0,82586.0,0.039059]
[1731337270327,0.000844,82602.0,82592.0,0.039059]
[1731337270528,0.000844,82602.0,82592.0,0.001]
[1731337270529,0.121075,82593.0,82592.0,0.001]
[1731337270974,0.121093,82581.0,82580.0,0.001688]
[1731337272559,0.005,82586.0,82580.0,0.001688]
[1731337272763,0.121093,82581.0,82580.0,0.001688]
[1731337273024,0.121089,82584.0,82580.0,0.001688]
[1731337273260,0.001,82581.0,82580.0,0.001688]
[1731337273466,0.122093,82581.0,82580.0,0.001688]
[1731337273678,0.001,82581.0,82580.0,0.001688]
[1731337273955,0.121093,82581.0,82580.0,0.001688]
[1731337274170,0.005,82586.0,82580.0,0.001688]
[1731337274382,0.121093,82581.0,82580.0,0.001688]
[1731337274595,0.125093,82581.0,82580.0,0.001688]
[1731337274800,0.004,82581.0,82580.0,0.001688]
[1731337275016,0.125093,82581.0,82580.0,0.04133531]
[1731337275237,0.0035,82581.0,82580.0,0.001688]
[1731337275673,0.0035,82581.0,82580.0,0.28837152]
[1731337275883,0.0035,82581.0,82580.0,0.24872421]
[1731337276104,0.0035,82581.0,82580.0,0.31379309]
[1731337276321,0.18187109,82597.0,82585.0,0.023]
[1731337276543,0.18187109,82588.0,82587.0,0.144084]
[1731337276786,0.18187109,82597.0,82593.0,0.121074]
[1731337277009,0.083,82606.0,82587.0,0.14894221]
[1731337277229,0.000686,82610.0,82601.0,0.144063]
[1731337277440,0.18187109,82605.0,82601.0,0.144063]
[1731337277650,0.18187109,82605.0,82601.0,0.16071031]
[1731337277865,0.18187109,82605.0,82601.0,0.03964731]
[1731337278077,0.000686,82610.0,82601.0,0.24700521]
[1731337278501,0.000686,82610.0,82594.0,0.121074]
[1731337278726,0.000686,82610.0,82595.0,0.12594221]
[1731337278906,0.000686,82610.0,82601.0,0.121063]
[1731337279195,0.000686,82610.0,82601.0,0.24700521]
[1731337279841,0.000686,82610.0,82601.0,0.24900521]
[1731337280047,0.000686,82610.0,82601.0,0.24800521]
[1731337280269,0.000686,82610.0,82601.0,0.28605691]
[1731337280442,0.000686,82610.0,82601.0,0.28705691]
[1731337281173,0.121053,82609.0,82601.0,0.001]
[1731337281323,0.0821,82607.0,82601.0,0.001]
[1731337281585,0.0821,82607.0,82601.0,0.002]
[1731337281785,0.000686,82610.0,82601.0,0.1636147]
[1731337282130,0.000686,82610.0,82601.0,0.1626147]
[1731337282370,0.000686,82610.0,82601.0,0.1636147]
[1731337282569,0.000686,82610.0,82601.0,0.28955691]
[1731337282759,0.000686,82610.0,82601.0,0.0425517]
[1731337282954,0.000686,82610.0,82591.0,0.121078]
[1731337283145,0.000686,82610.0,82601.0,0.001]
[1731337283146,0.002,82609.0,82601.0,0.001]
[1731337283523,0.005,82609.0,82601.0,0.002]
[1731337283904,0.005,82609.0,82601.0,0.001]
[1731337284126,0.007,82609.0,82601.0,0.001]
[1731337284285,0.121055,82607.0,82601.0,0.002]
[1731337284495,0.17533536,82604.0,82601.0,0.001]
[1731337284707,0.05427536,82604.0,82587.0,0.06191623]
[1731337284881,0.05427536,82604.0,82601.0,0.03843209]
[1731337285300,0.05427536,82604.0,82587.0,0.02448414]
[1731337285496,0.121061,82603.0,82588.0,0.03743209]
[1731337285779,0.18271509,82602.0,82588.0,0.03743209]
[1731337286207,0.30377809,82602.0,82601.0,0.001]
[1731337286416,0.30377809,82602.0,82588.0,0.03743209]
[1731337286417,0.18271509,82602.0,82588.0,0.03743209]
[1731337286676,0.000844,82602.0,82588.0,0.03843209]
[1731337286880,0.18187109,82601.0,82588.0,0.03843209]
[1731337287120,0.18187109,82601.0,82588.0,0.03743209]
[1731337287328,0.18187109,82601.0,82591.0,0.121078]
[1731337287543,0.18187109,82601.0,82590.0,0.121078]
[1731337287762,0.18187109,82601.0,82592.0,0.03743209]
[1731337287981,0.18187109,82601.0,82592.0,0.15850809]
[1731337288229,0.000844,82602.0,82594.0,0.121073]
[1731337288444,0.000844,82602.0,82592.0,0.15850809]
[1731337288649,0.000844,82602.0,82595.0,0.03743209]
[1731337289092,0.18187109,82601.0,82595.0,0.03743209]
[1731337289311,0.000844,82602.0,82595.0,0.03743209]
[1731337289738,0.242127,82601.0,82595.0,0.03743209]
[1731337289944,0.121066,82600.0,82587.0,0.02448414]
[1731337290157,0.000844,82602.0,82587.0,0.02448414]
[1731337290158,0.000844,82602.0,82595.0,0.001]
[1731337290565,0.000844,82602.0,82596.0,0.03743209]
[1731337290730,0.18187109,82601.0,82596.0,0.03743209]
[1731337290929,0.000844,82602.0,82596.0,0.15850209]
[1731337291128,0.000844,82602.0,82597.0,0.121069]
[1731337291295,0.18187109,82599.0,82598.0,0.03743209]
[1731337291503,0.000844,82602.0,82598.0,0.03743209]
[1731337291704,0.18187109,82601.0,82598.0,0.03743209]